bitfinex/quotes_BTCUSD_20210101
["timestamp","ask_amount","ask_price","bid_price","bid_amount"]
[1609495299339,0.575,29186.0,29184.0,0.01793263]
[1609495300042,8.38960658,29185.0,29184.0,2.63e-06]
[1609495300242,8.57285658,29185.0,29184.0,2.63e-06]
[1609495300439,10.52285658,29185.0,29184.0,2.63e-06]
[1609495300647,10.81361058,29185.0,29184.0,2.63e-06]
[1609495300841,10.81361058,29185.0,29183.0,4.73e-06]
[1609495301042,10.81361058,29185.0,29181.0,0.0002]
[1609495301043,1.01711947,29184.0,29181.0,0.0002]
[1609495301295,1.5,29182.0,29180.0,0.0002]
[1609495301492,3.50771947,29181.0,29180.0,0.0002]
[1609495302286,3.96091947,29181.0,29180.0,0.0002]
[1609495305795,3.96091947,29181.0,29180.0,0.01104362]
[1609495305991,8.32713883,29181.0,29180.0,0.01104362]
[1609495306291,8.32713883,29181.0,29180.0,0.01892068]
[1609495308206,6.37713883,29181.0,29180.0,0.01892068]
[1609495309207,7.37713883,29181.0,29180.0,0.01892068]
[1609495309506,5.1938,29181.0,29180.0,0.01892068]
[1609495310206,7.1438,29181.0,29180.0,0.01892068]
[1609495310707,5.1938,29181.0,29180.0,0.01892068]
[1609495311105,7.2938,29181.0,29180.0,0.01892068]
[1609495311306,5.1938,29181.0,29180.0,0.01892068]
[1609495311504,5.87713883,29181.0,29180.0,0.01892068]
[1609495311906,6.97713883,29181.0,29180.0,0.01892068]
[1609495312112,4.1938,29181.0,29180.0,0.01892068]
[1609495312929,5.5438,29181.0,29180.0,0.01892068]
[1609495313533,5.57949671,29181.0,29180.0,0.01892068]
[1609495313731,6.26283554,29181.0,29180.0,0.01892068]
[1609495314132,5.57949671,29181.0,29180.0,0.01892068]
[1609495314532,5.5438,29181.0,29180.0,0.01892068]
[1609495314937,6.4938,29181.0,29180.0,0.01892068]
[1609495315138,4.1938,29181.0,29180.0,0.01892068]
[1609495316035,6.6438,29181.0,29180.0,0.01892068]
[1609495316300,4.1938,29181.0,29180.0,0.01892068]
[1609495316897,5.7438,29181.0,29180.0,0.01892068]
[1609495317401,1.4438,29181.0,29180.0,0.01892068]
[1609495317804,1.4438,29181.0,29180.0,0.98569185]
[1609495318009,0.4532,29181.0,29180.0,1.18281185]
[1609495318233,1.641,29182.0,29180.0,0.86615068]
[1609495318538,1.641,29182.0,29180.0,0.68781185]
[1609495318731,1.641,29182.0,29181.0,0.31666117]
[1609495319333,1.0,29182.0,29181.0,0.31666117]
[1609495320634,1.79449293,29185.0,29181.0,0.31666117]
[1609495320836,1.0,29185.0,29181.0,0.31666117]
[1609495321035,0.01949293,29184.0,29181.0,0.31666117]
[1609495322058,1.0,29185.0,29181.0,0.31666117]
[1609495322971,1.0,29185.0,29182.0,0.08]
[1609495323270,1.0,29185.0,29183.0,0.31666117]
[1609495323466,1.4123,29186.0,29183.0,0.31666117]
[1609495323770,1.4123,29186.0,29184.0,0.03346812]
[1609495323965,0.4746,29186.0,29185.0,1.31666117]
[1609495324265,0.015,29186.0,29185.0,0.51666117]
[1609495330289,0.015,29186.0,29185.0,0.52453711]
[1609495336382,0.015,29186.0,29185.0,0.20787594]
[1609495336579,0.015,29186.0,29185.0,0.00787594]
[1609495339600,0.015,29186.0,29185.0,0.32453711]
[1609495339807,0.015,29186.0,29185.0,2.72453711]
[1609495340000,0.015,29186.0,29185.0,1.15490611]
[1609495340199,0.015,29186.0,29185.0,0.86497611]
[1609495340903,0.015,29186.0,29185.0,0.49960711]
[1609495341105,0.015,29186.0,29185.0,0.86497611]
[1609495341404,0.015,29186.0,29185.0,0.94497611]
[1609495341603,0.015,29186.0,29185.0,1.19504611]
[1609495341806,0.025,29186.0,29185.0,1.19504611]
[1609495342823,0.025,29186.0,29185.0,0.87838494]
[1609495343321,0.025,29186.0,29185.0,1.21031298]
[1609495343722,0.025,29186.0,29185.0,1.09024298]
[1609495344432,0.025,29186.0,29185.0,1.40690415]
[1609495344624,0.025,29186.0,29185.0,1.48690415]
[1609495344922,0.025,29186.0,29185.0,1.54542415]
[1609495345122,0.025,29186.0,29185.0,1.21349611]
[1609495346988,0.025,29186.0,29185.0,1.15497611]
[1609495347288,0.025,29186.0,29185.0,1.23548318]
[1609495347489,0.025,29186.0,29185.0,0.83831494]
[1609495347691,0.025,29186.0,29185.0,0.29787594]
[1609495347988,0.025,29186.0,29185.0,0.40453711]
[1609495348220,0.025,29186.0,29185.0,1.02354611]
[1609495348620,0.025,29186.0,29185.0,3.32354611]
[1609495349119,0.025,29186.0,29185.0,1.22354611]
[1609495349323,0.025,29186.0,29185.0,1.22854611]
[1609495350421,0.025,29186.0,29185.0,1.42854611]
[1609495350622,0.025,29186.0,29185.0,3.32854611]
[1609495350923,0.025,29186.0,29185.0,3.36201423]
[1609495351123,0.0178,29186.0,29185.0,3.68201423]
[1609495351319,0.0178,29186.0,29185.0,5.73201423]
[1609495351525,0.0163,29186.0,29185.0,5.48201423]
[1609495351824,0.016,29186.0,29185.0,3.68201423]
[1609495352046,0.016,29186.0,29185.0,5.28201423]
[1609495352549,0.016,29186.0,29185.0,7.63201423]
[1609495353650,0.016,29186.0,29185.0,7.73950076]
[1609495354253,0.016,29186.0,29185.0,5.38950076]
[1609495354650,0.016,29186.0,29185.0,5.28201423]
[1609495355348,0.016,29186.0,29185.0,3.68201423]
[1609495356551,0.016,29186.0,29185.0,6.98201423]
[1609495358979,0.0083,29186.0,29185.0,6.98201423]
[1609495359379,0.0068,29186.0,29185.0,6.98201423]
[1609495359679,0.0065,29186.0,29185.0,6.98201423]
[1609495359881,0.6959,29199.0,29186.0,0.31666117]
[1609495360190,0.6959,29199.0,29190.0,0.31666117]
[1609495360389,0.6959,29199.0,29191.0,1.01581081]
[1609495360585,0.2,29200.0,29195.0,0.365369]
[1609495360884,0.2,29200.0,29197.0,0.365369]
[1609495361083,0.2,29200.0,29199.0,2.165369]
[1609495361370,0.2,29200.0,29199.0,2.48008617]
[1609495361515,0.2,29200.0,29199.0,2.96508617]
[1609495361723,0.2,29200.0,29199.0,0.850369]
[1609495361916,0.2,29200.0,29199.0,0.76008617]
[1609495362118,0.2,29200.0,29199.0,0.445369]
[1609495362317,0.2,29200.0,29199.0,0.76008617]
[1609495362616,0.2,29200.0,29199.0,0.445369]
[1609495363649,0.2,29200.0,29199.0,0.77742203]
[1609495364252,0.2,29200.0,29199.0,0.92900203]
[1609495364455,0.2,29200.0,29199.0,0.751949]
[1609495364852,0.25881226,29202.0,29199.0,1.24795287]
[1609495365054,0.2755,29208.0,29200.0,3.91471717]
[1609495365253,0.2755,29208.0,29201.0,1.42217202]
[1609495365459,0.37785051,29203.0,29202.0,1.915369]
[1609495365956,0.37785051,29203.0,29202.0,0.365369]
[1609495366156,0.2755,29208.0,29207.0,0.24744026]
[1609495366359,0.01969293,29209.0,29207.0,0.39945026]
[1609495366556,1.93528283,29208.0,29207.0,0.39945026]
[1609495367182,0.68528283,29208.0,29207.0,0.39945026]
[1609495367583,0.68528283,29208.0,29207.0,0.41374279]
[1609495368684,0.70497576,29209.0,29207.0,0.41374279]
[1609495368883,0.01969293,29209.0,29207.0,0.41374279]
[1609495371788,0.01969293,29209.0,29207.0,0.42161286]
[1609495371985,0.01969293,29209.0,29207.0,0.53077286]
[1609495373914,0.0002,29209.0,29207.0,0.53077286]
[1609495376647,0.0002,29209.0,29204.0,0.05661523]
[1609495376846,0.0002,29209.0,29207.0,0.25811]
[1609495377648,0.0004,29210.0,29208.0,0.365369]
[1609495377847,0.0004,29210.0,29208.0,0.31471717]
[1609495378052,0.0006,29212.0,29210.0,4.63180302]
[1609495378277,0.0006,29212.0,29211.0,1.120369]
[1609495378476,0.0006,29212.0,29211.0,0.365369]
[1609495379774,0.0006,29212.0,29211.0,0.54576623]
[1609495381080,0.0006,29212.0,29211.0,0.18039723]
[1609495381379,0.0006,29212.0,29211.0,0.54576623]
[1609495386605,0.0006,29212.0,29211.0,0.60238146]
[1609495386806,0.0008,29213.0,29212.0,2.215369]
[1609495387007,0.0008,29213.0,29212.0,2.580369]
[1609495387207,0.0008,29213.0,29212.0,0.730369]
[1609495387510,0.0008,29213.0,29212.0,0.42198423]
[1609495387932,0.0008,29215.0,29213.0,1.565369]
[1609495388134,0.0008,29215.0,29213.0,0.542759]
[1609495388732,0.0008,29215.0,29213.0,0.59937423]
[1609495390535,0.0008,29215.0,29213.0,0.23400523]
[1609495392088,0.0008,29215.0,29213.0,0.59937423]
[1609495392389,0.02029293,29214.0,29213.0,0.23400523]
[1609495392692,0.02029293,29214.0,29213.0,0.05661523]
[1609495392885,0.0008,29214.0,29213.0,0.05661523]
[1609495393085,0.0008,29214.0,29213.0,0.24628523]
[1609495393322,1.14538283,29217.0,29213.0,0.24628523]
[1609495393522,0.4601,29217.0,29213.0,0.25882215]
[1609495393724,0.4601,29217.0,29216.0,0.28758575]
[1609495394225,0.0008,29218.0,29216.0,0.28758575]
[1609495394826,0.0008,29218.0,29217.0,0.05661523]
[1609495395025,0.0008,29218.0,29216.0,0.28758575]
[1609495395228,0.26329293,29220.0,29216.0,0.28758575]
[1609495395426,0.22725491,29220.0,29216.0,0.28758575]
[1609495398151,4.3,29219.0,29213.0,0.02122338]
[1609495398351,4.3,29219.0,29215.0,0.13545]
[1609495398551,4.3,29219.0,29217.0,0.00786714]
[1609495398753,4.67096732,29219.0,29217.0,0.00786714]
[1609495399454,0.37096732,29219.0,29217.0,0.00786714]
[1609495399759,0.37096732,29219.0,29218.0,0.365369]
[1609495402153,0.37096732,29219.0,29218.0,0.68008617]
[1609495403006,0.37096732,29219.0,29218.0,0.55189685]
[1609495403508,0.37096732,29219.0,29218.0,0.68689685]
[1609495404005,0.37096732,29219.0,29218.0,1.01893881]
[1609495404404,0.37096732,29219.0,29218.0,0.69941174]
[1609495405607,0.35596732,29219.0,29218.0,0.69941174]
[1609495405807,0.35596732,29219.0,29218.0,1.03149404]
[1609495406485,0.35596732,29219.0,29218.0,0.69941174]
[1609495409486,0.35596732,29219.0,29218.0,1.01412891]
[1609495411427,0.33646732,29219.0,29218.0,1.01412891]
[1609495411631,0.33256732,29219.0,29218.0,0.69941174]
[1609495411832,0.33176732,29219.0,29218.0,2.09941174]
[1609495412029,0.33176732,29219.0,29218.0,0.69941174]
[1609495412232,0.33156732,29219.0,29218.0,2.34941174]
[1609495412431,0.33156732,29219.0,29218.0,0.69941174]
[1609495412832,0.33156732,29219.0,29218.0,1.01412891]
[1609495413332,0.0008,29221.0,29219.0,1.9]
[1609495413534,0.0008,29221.0,29220.0,0.750369]
[1609495413735,0.0008,29221.0,29220.0,0.365369]
[1609495413934,0.0008,29221.0,29219.0,0.18071]
[1609495414135,0.0008,29221.0,29220.0,0.365369]
[1609495414836,0.0008,29221.0,29219.0,0.18071]
[1609495415034,0.0008,29221.0,29220.0,0.365369]
[1609495415740,0.0008,29221.0,29218.0,0.33404274]
[1609495415974,0.0008,29221.0,29219.0,0.365369]
[1609495416174,0.1,29220.0,29219.0,0.365369]
[1609495416374,0.0008,29221.0,29219.0,0.520369]
[1609495416576,0.1,29220.0,29219.0,0.520369]
[1609495416774,1.62580574,29219.0,29218.0,0.19904274]
[1609495416975,0.37580574,29219.0,29218.0,0.56414874]
[1609495417173,0.37580574,29219.0,29218.0,0.69914874]
[1609495420703,0.37580574,29219.0,29218.0,0.33404274]
[1609495421580,1.52619457,29219.0,29218.0,0.33404274]
[1609495421784,6.06519457,29219.0,29218.0,0.53113489]
[1609495422080,7.11519457,29219.0,29218.0,0.53113489]
[1609495422376,7.28519457,29219.0,29218.0,0.01251489]
[1609495422576,2.08519457,29219.0,29218.0,0.01251489]
[1609495422880,2.28519457,29219.0,29218.0,0.01251489]
[1609495423074,1.19991174,29219.0,29218.0,0.01251489]
[1609495423277,0.84091174,29219.0,29218.0,0.01251489]
[1609495423511,0.84091174,29219.0,29218.0,0.61883384]
[1609495424804,0.81591174,29219.0,29218.0,0.61883384]
[1609495426108,0.81591174,29219.0,29218.0,0.84559384]
[1609495426304,0.81591174,29219.0,29218.0,0.98559384]
[1609495426508,0.81591174,29219.0,29218.0,0.65341422]
[1609495428442,0.71591174,29219.0,29218.0,0.65341422]
[1609495430739,0.81591174,29219.0,29218.0,0.65341422]
[1609495430941,0.71591174,29219.0,29218.0,0.65341422]
[1609495433195,0.71591174,29219.0,29218.0,0.37927489]
[1609495433397,0.71591174,29219.0,29218.0,0.23927489]
[1609495437658,0.35080574,29219.0,29218.0,0.60438089]
[1609495437856,0.35080574,29219.0,29218.0,0.73938089]
[1609495439656,0.35080574,29219.0,29218.0,0.37427489]
[1609495439860,0.35080574,29219.0,29218.0,0.23927489]
[1609495441602,1.03608857,29219.0,29218.0,0.23927489]
[1609495441798,1.6206875,29219.0,29218.0,0.01251489]
[1609495442398,1.7906875,29219.0,29218.0,0.01251489]
[1609495442703,4.8406875,29219.0,29218.0,0.01251489]
[1609495442902,6.8406875,29219.0,29218.0,0.01251489]
[1609495443106,7.0557375,29219.0,29218.0,0.01251489]
[1609495443301,7.7032375,29219.0,29218.0,0.01251489]
[1609495443501,10.3953375,29219.0,29218.0,0.01251489]
[1609495443705,6.4278375,29219.0,29218.0,0.34532722]
[1609495443898,6.1357375,29219.0,29218.0,0.34532722]
[1609495444104,5.9206875,29219.0,29218.0,0.01251489]
[1609495444302,5.9206875,29219.0,29218.0,0.34535214]
[1609495444499,9.3706875,29219.0,29218.0,0.34535214]
[1609495444903,9.3706875,29219.0,29218.0,0.29033214]
[1609495445105,6.68528283,29218.0,29217.0,7.14e-06]
[1609495445302,7.30038883,29218.0,29217.0,7.14e-06]
[1609495445700,7.59318883,29218.0,29217.0,7.14e-06]
[1609495446324,8.27108883,29218.0,29217.0,0.00786735]
[1609495446522,8.75498883,29218.0,29217.0,0.00786735]
[1609495447024,8.74498883,29218.0,29217.0,0.00786735]
[1609495447221,9.74498883,29218.0,29217.0,0.00786735]
[1609495449026,9.85194256,29218.0,29217.0,0.00786735]
[1609495449229,9.74498883,29218.0,29217.0,0.00786735]
[1609495449931,9.93033883,29218.0,29217.0,0.00786735]
[1609495450329,9.93033883,29218.0,29217.0,0.01954521]
[1609495450637,1.577156,29218.0,29217.0,0.01954521]
[1609495450934,0.907906,29218.0,29217.0,0.01954521]
[1609495451130,0.63459893,29218.0,29217.0,0.01954521]
[1609495452682,0.46459893,29218.0,29217.0,0.01954521]
[1609495455782,0.38459893,29218.0,29217.0,0.01954521]
[1609495456081,0.55459893,29218.0,29217.0,0.01954521]
[1609495456282,1.45459893,29218.0,29217.0,0.01954521]
[1609495456483,1.435106,29218.0,29217.0,0.01954521]
[1609495456684,0.55459893,29218.0,29217.0,0.01954521]
[1609495457908,0.55459893,29218.0,29217.0,0.35795521]
[1609495458208,0.38459893,29218.0,29217.0,0.35795521]
[1609495459308,1.38459893,29218.0,29217.0,0.35795521]
[1609495459509,1.38459893,29218.0,29217.0,0.26635521]
[1609495460108,0.38459893,29218.0,29217.0,0.26635521]
[1609495460408,0.55459893,29218.0,29217.0,0.26635521]
[1609495461210,0.55459893,29218.0,29217.0,0.01954521]
[1609495461510,1.25459893,29218.0,29217.0,0.01954521]
[1609495462111,0.55459893,29218.0,29217.0,0.01954521]
[1609495464138,1.03219893,29218.0,29217.0,0.01954521]
[1609495464341,4.11748176,29218.0,29217.0,0.01954521]
[1609495464940,3.43219893,29218.0,29217.0,0.01954521]
[1609495465138,4.11748176,29218.0,29217.0,0.01954521]
[1609495465343,4.40628176,29218.0,29217.0,0.01954521]
[1609495465841,4.60628176,29218.0,29217.0,0.01954521]
[1609495466618,2.00628176,29218.0,29217.0,0.01954521]
[1609495466782,1.71748176,29218.0,29217.0,0.01954521]
[1609495467480,1.03219893,29218.0,29217.0,0.01954521]
[1609495469323,3.78219893,29218.0,29217.0,0.01954521]
[1609495472742,1.23219893,29218.0,29217.0,0.01954521]
[1609495472942,1.23219893,29218.0,29217.0,0.15787521]
[1609495473143,1.03219893,29218.0,29217.0,0.15787521]
[1609495473343,0.86219893,29218.0,29217.0,0.15787521]
[1609495475145,2.81219893,29218.0,29217.0,0.15787521]
[1609495475344,2.81219893,29218.0,29217.0,0.01954521]
[1609495475544,2.98219893,29218.0,29217.0,0.01954521]
[1609495476451,3.86748176,29218.0,29217.0,0.01954521]
[1609495477047,4.86748176,29218.0,29217.0,0.01954521]
[1609495477249,4.94798883,29218.0,29217.0,0.01954521]
[1609495477448,3.94798883,29218.0,29217.0,0.01954521]
[1609495478071,3.262706,29218.0,29217.0,0.01954521]
[1609495479774,1.312706,29218.0,29217.0,0.01954521]
[1609495481721,1.112706,29218.0,29217.0,0.31424371]
[1609495482118,0.635106,29218.0,29217.0,0.31424371]
[1609495483222,0.535106,29218.0,29217.0,0.49612371]
[1609495484849,2.515106,29218.0,29217.0,0.49516971]
[1609495485049,0.365106,29218.0,29217.0,0.49516971]
[1609495485452,0.365106,29218.0,29217.0,0.31328971]
[1609495486056,0.365106,29218.0,29217.0,0.62200971]
[1609495486454,0.365106,29218.0,29217.0,0.93672688]
[1609495486653,1.35080574,29219.0,29217.0,1.09172688]
[1609495486851,1.35080574,29219.0,29217.0,0.93672688]
[1609495487879,1.35080574,29219.0,29217.0,0.62200971]
[1609495488086,3.365106,29218.0,29217.0,0.62200971]
[1609495488280,0.365106,29218.0,29217.0,0.62200971]
[1609495489084,1.21782385,29218.0,29217.0,0.62200971]
[1609495489283,1.115106,29218.0,29217.0,0.62200971]
[1609495489581,0.365106,29218.0,29217.0,0.62200971]
[1609495490083,2.065106,29218.0,29217.0,0.62200971]
[1609495490685,0.535106,29218.0,29217.0,0.62200971]
[1609495490881,0.540106,29218.0,29217.0,0.62200971]
[1609495492386,0.370106,29218.0,29217.0,0.62200971]
[1609495493533,0.365106,29218.0,29217.0,0.62200971]
[1609495498891,1.965106,29218.0,29217.0,0.48756971]
[1609495499092,1.965106,29218.0,29217.0,0.01859121]
[1609495499391,2.335106,29218.0,29217.0,0.01859121]
[1609495499794,0.535106,29218.0,29217.0,0.01859121]
[1609495500590,0.365106,29218.0,29217.0,0.01859121]
[1609495504619,0.565106,29218.0,29217.0,0.01859121]
[1609495504916,0.735106,29218.0,29217.0,0.01859121]
[1609495506818,0.535106,29218.0,29217.0,0.01859121]
[1609495507121,0.365106,29218.0,29217.0,0.01859121]
[1609495508940,0.360496,29218.0,29217.0,0.01241121]
[1609495509139,3.560156,29218.0,29217.0,0.01056121]
[1609495509339,3.909546,29218.0,29217.0,0.00241121]
[1609495509640,2.75,29217.0,29216.0,0.22467107]
[1609495509839,0.453571,29217.0,29216.0,0.22264107]
[1609495510038,3.672591,29217.0,29216.0,0.22190107]
[1609495510338,0.614591,29217.0,29216.0,0.22190107]
[1609495510738,0.606131,29217.0,29216.0,0.22190107]
[1609495510942,0.573911,29217.0,29216.0,0.22190107]
[1609495511139,0.539641,29217.0,29216.0,0.22190107]
[1609495511343,0.505371,29217.0,29216.0,0.22190107]
[1609495511541,0.471101,29217.0,29216.0,0.22190107]
[1609495511794,0.436831,29217.0,29216.0,0.22190107]
[1609495511993,0.636831,29217.0,29216.0,0.22190107]
[1609495512394,0.466831,29217.0,29216.0,0.22190107]
[1609495514228,0.266831,29217.0,29216.0,0.22190107]
[1609495520064,2.466831,29217.0,29216.0,0.21590107]
[1609495520259,2.636831,29217.0,29216.0,0.21590107]
[1609495520659,0.436831,29217.0,29216.0,0.21590107]
[1609495520863,0.636831,29217.0,29215.0,0.00786775]
[1609495521062,0.16683,29216.0,29215.0,0.00786775]
[1609495521260,0.33683,29216.0,29215.0,0.00786775]
[1609495523294,0.53683,29216.0,29215.0,0.00786775]
[1609495526771,1.53766765,29216.0,29215.0,0.00786775]
[1609495526930,1.76385765,29216.0,29215.0,0.00786775]
[1609495527630,1.84385765,29216.0,29215.0,7.75e-06]
[1609495527828,2.13835765,29216.0,29215.0,7.75e-06]
[1609495528337,2.13835765,29216.0,29215.0,0.33289845]
[1609495528528,6.29385765,29216.0,29215.0,0.33289845]
[1609495528768,7.29385765,29216.0,29214.0,0.33289855]
[1609495528965,7.33766765,29215.0,29214.0,0.33289855]
[1609495529166,7.52666765,29215.0,29214.0,0.33289855]
[1609495529673,9.10666765,29215.0,29214.0,8.55e-06]
[1609495529877,0.25630001,29208.0,29203.0,0.00068485]
[1609495530070,1.27115247,29207.0,29203.0,0.00068485]
[1609495530273,6.16683,29204.0,29203.0,0.00068485]
[1609495530575,6.51683,29204.0,29203.0,0.00068485]
[1609495530876,8.20211283,29204.0,29203.0,0.00068485]
[1609495531068,8.19665494,29204.0,29203.0,0.00068485]
[1609495531265,7.19541491,29204.0,29203.0,0.00068485]
[1609495531466,7.18880235,29204.0,29203.0,0.00068485]
[1609495531671,7.18764121,29204.0,29203.0,0.00068485]
[1609495531969,7.44278114,29204.0,29203.0,0.00068485]
[1609495532166,6.75749831,29204.0,29203.0,0.00068485]
[1609495532396,7.44278114,29204.0,29203.0,0.00068485]
[1609495532796,6.0,29203.0,29191.0,0.90135526]
[1609495532996,0.17065893,29201.0,29191.0,0.90135526]
[1609495533197,0.151166,29199.0,29192.0,0.31471717]
[1609495533493,0.01949293,29198.0,29192.0,0.31471717]
[1609495533693,0.151166,29197.0,29192.0,0.31471717]
[1609495535696,0.151166,29197.0,29193.0,0.01083861]
[1609495535895,0.151166,29197.0,29194.0,0.31471717]
[1609495536394,0.131166,29197.0,29194.0,0.31471717]
[1609495536595,0.131166,29197.0,29193.0,0.01083861]
[1609495538022,0.131166,29197.0,29193.0,0.00159381]
[1609495540131,0.25,29196.0,29193.0,0.00159381]
[1609495540331,0.15065493,29195.0,29193.0,0.00159381]
[1609495541124,0.15065493,29195.0,29187.0,0.2201]
[1609495541825,0.08220193,29195.0,29187.0,0.2201]
[1609495545554,5.7,29194.0,29187.0,0.51121717]
[1609495545819,0.062702,29193.0,29188.0,0.31471717]
[1609495546019,0.01949293,29192.0,29188.0,0.31471717]
[1609495546218,0.062702,29191.0,29188.0,0.31471717]
[1609495546419,0.01949293,29192.0,29188.0,0.31471717]
[1609495546620,0.0865,29195.0,29189.0,0.365425]
[1609495546921,0.062702,29194.0,29190.0,0.31471717]
[1609495547118,0.062702,29194.0,29187.0,0.31471717]
[1609495547322,1.0,29196.0,29187.0,0.31471717]
[1609495547540,0.74798483,29195.0,29186.0,0.1708]
[1609495547742,1.01443404,29194.0,29185.0,0.2199]
[1609495547946,1.01443404,29194.0,29185.0,0.2191]
[1609495547947,5.862702,29186.0,29185.0,0.2191]
[1609495548135,6.56747776,29186.0,29185.0,0.2173]
[1609495548334,6.56747776,29186.0,29185.0,0.2123]
[1609495548534,6.73747776,29186.0,29185.0,0.2081]
[1609495548733,6.73747776,29186.0,29185.0,0.2055]
[1609495548933,6.81747776,29186.0,29185.0,0.2055]
[1609495549536,8.12397776,29186.0,29185.0,0.2055]
[1609495549733,7.43869493,29186.0,29185.0,0.2055]
[1609495549936,6.38869493,29186.0,29185.0,0.30802491]
[1609495550336,6.73869493,29186.0,29185.0,0.30802491]
[1609495551036,6.47424493,29186.0,29185.0,0.2055]
[1609495552037,6.47424493,29186.0,29185.0,0.30951539]
[1609495552237,6.77424493,29186.0,29185.0,0.30951539]
[1609495552641,6.77424493,29186.0,29185.0,0.2055]
[1609495553267,7.45952776,29186.0,29185.0,0.2055]
[1609495553469,6.77424493,29186.0,29185.0,0.2055]
[1609495553667,6.77424493,29186.0,29185.0,0.30754178]
[1609495553866,7.77424493,29186.0,29185.0,0.30754178]
[1609495554367,7.77424493,29186.0,29185.0,0.2055]
[1609495554972,7.47424493,29186.0,29185.0,0.2055]
[1609495555373,7.47424493,29186.0,29185.0,0.30918646]
[1609495555874,9.57424493,29186.0,29185.0,0.30918646]
[1609495557069,10.25952776,29186.0,29185.0,0.30918646]
[1609495557269,10.25952776,29186.0,29185.0,0.2055]
[1609495558269,10.29521058,29186.0,29185.0,0.2055]
[1609495558792,10.64521058,29186.0,29185.0,0.2055]
[1609495560093,9.95992775,29186.0,29185.0,0.2055]
[1609495561493,10.41992775,29186.0,29185.0,0.2055]
[1609495564636,10.41992775,29186.0,29185.0,0.30704838]
[1609495564837,10.41992775,29186.0,29185.0,0.2055]
[1609495565640,10.16342775,29186.0,29185.0,0.2055]
[1609495566041,10.84871058,29186.0,29185.0,0.2055]
[1609495566241,6.74798483,29185.0,29184.0,0.0006]
[1609495566540,6.99798483,29185.0,29184.0,0.0006]
[1609495566939,7.69308483,29185.0,29184.0,0.0006]
[1609495567242,8.41848483,29185.0,29184.0,0.0006]
[1609495567436,9.36418483,29185.0,29184.0,0.0006]
[1609495567939,9.83098483,29185.0,29184.0,0.0006]
[1609495571972,1.05,29182.0,29180.0,0.02094359]
[1609495572174,6.73747776,29181.0,29180.0,3.59e-06]
[1609495572975,8.51747776,29181.0,29180.0,3.59e-06]
[1609495573172,7.92456584,29181.0,29180.0,3.59e-06]
[1609495573574,7.94244247,29181.0,29180.0,3.59e-06]
[1609495575094,7.25715964,29181.0,29180.0,3.59e-06]
[1609495575599,7.35915443,29181.0,29180.0,3.59e-06]
[1609495576196,8.30040726,29181.0,29180.0,3.59e-06]
[1609495576894,8.19841247,29181.0,29180.0,3.59e-06]
[1609495577497,7.51312964,29181.0,29180.0,3.59e-06]
[1609495577897,8.19841247,29181.0,29180.0,3.59e-06]
[1609495578398,7.51312964,29181.0,29180.0,3.59e-06]
[1609495579628,8.19841247,29181.0,29180.0,3.59e-06]
[1609495584029,8.12702042,29181.0,29180.0,3.59e-06]
[1609495584433,8.19841888,29181.0,29180.0,3.59e-06]
[1609495585242,1.3066,29175.0,29173.0,0.0002]
[1609495585446,1.3066,29175.0,29166.0,0.0004]
[1609495585447,1.05,29171.0,29166.0,0.0004]
[1609495585654,1.05,29171.0,29165.0,0.0006]
[1609495585655,0.062702,29167.0,29165.0,0.0006]
[1609495585949,5.88219493,29166.0,29165.0,0.0006]
[1609495586244,6.56747776,29166.0,29165.0,0.0004]
[1609495586444,6.81747776,29166.0,29165.0,0.0004]
[1609495586648,6.74798483,29165.0,29161.0,0.0008]
[1609495587012,6.74798483,29165.0,29146.0,0.49982037]
[1609495587239,0.062702,29161.0,29154.0,0.31471717]
[1609495587434,0.49341493,29161.0,29154.0,0.31471717]
[1609495587632,0.57341493,29161.0,29154.0,0.31471717]
[1609495588731,0.67601493,29161.0,29154.0,0.31471717]
[1609495588968,0.47601493,29161.0,29148.0,0.17115278]
[1609495589167,5.9,29160.0,29148.0,0.16856695]
[1609495589365,0.26615814,29159.0,29148.0,0.16856695]
[1609495589564,0.21949293,29158.0,29148.0,0.16856695]
[1609495590165,0.01949293,29158.0,29149.0,0.00042994]
[1609495590366,0.01949293,29158.0,29148.0,0.16856695]
[1609495590667,0.75,29158.0,29148.0,0.07899689]
[1609495590867,1.25866,29159.0,29148.0,0.07899689]
[1609495591065,0.062702,29158.0,29153.0,0.27964152]
[1609495591467,1.0,29159.0,29153.0,0.27964152]
[1609495591667,1.0,29159.0,29153.0,0.27464152]
[1609495592589,1.0,29159.0,29154.0,0.365425]
[1609495592996,1.0,29159.0,29154.0,0.36578864]
[1609495593292,1.0,29159.0,29154.0,0.36078864]
[1609495594092,2.0,29158.0,29154.0,0.36078864]
[1609495597693,2.0,29158.0,29154.0,0.35578864]
[1609495598822,0.062702,29157.0,29154.0,0.00036364]
[1609495599128,1.08219493,29157.0,29148.0,0.25818625]
[1609495599323,1.0,29157.0,29149.0,0.365828]
[1609495599521,1.0,29157.0,29149.0,0.36619164]
[1609495601322,1.0,29157.0,29150.0,0.03346812]
[1609495601623,1.0,29157.0,29150.0,0.00036364]
[1609495601826,0.07264,29156.0,29150.0,0.00036364]
[1609495602054,1.0,29157.0,29148.0,0.25818625]
[1609495602257,1.0,29157.0,29149.0,0.365828]
[1609495602454,1.0,29157.0,29149.0,0.36619164]
[1609495603457,1.0,29157.0,29150.0,0.14]
[1609495603658,1.0,29157.0,29150.0,0.14036364]
[1609495603902,1.0,29157.0,29151.0,0.365828]
[1609495604303,1.0,29157.0,29151.0,0.36619164]
[1609495604803,0.995,29157.0,29151.0,0.39965976]
[1609495605104,0.995,29157.0,29153.0,0.62015741]
[1609495605803,0.995,29157.0,29156.0,0.365828]
[1609495606009,2.0,29158.0,29156.0,0.365828]
[1609495606209,2.0,29158.0,29157.0,6.165828]
[1609495606511,2.0,29158.0,29157.0,7.11965976]
[1609495606713,0.1026,29161.0,29157.0,7.08619164]
[1609495607012,0.1026,29161.0,29160.0,6.34299928]
[1609495607213,0.01949293,29183.0,29161.0,0.33180302]
[1609495607214,0.1026,29170.0,29161.0,0.33180302]
[1609495607408,0.1026,29170.0,29169.0,3.52117319]
[1609495607628,0.1026,29181.0,29170.0,0.33180302]
[1609495607825,0.1026,29181.0,29171.0,1.06429612]
[1609495608017,0.1026,29181.0,29172.0,0.00036364]
[1609495608224,0.07264,29180.0,29172.0,0.33216666]
[1609495608418,0.07264,29180.0,29170.0,0.00036364]
[1609495608823,0.1026,29181.0,29171.0,0.36546436]